Cogmind - Beta 17 @@@ ROGUE MODE // 2026.07.02 @ 00:48:48 Player: DPV_07 Result: Destroyed by FP-CM4(R) with Subdweller Beam Cannon Performance ------------- Evolutions (0) 0 Regions Visited (3) 600 Robots Destroyed (16) 80 Value Destroyed (297) 297 Prototype IDs (0) 0 Alien Tech Used (0) 0 Bonus (0) 0 TOTAL SCORE: 977 Bonus ------- None Cogmind --------- Core Integrity 0/250 Matter 236/300 Energy 250/250 System Corruption 0% Temperature Cool (9) Movement Core (300) Ox5 Location -10/Subcaves Parts ------- > --- POWER (1) -------- Ion Engine > --- PROPULSION (2) --- Subdweller Monowheel > --- UTILITY (2) ------ Targeting Computer > --- WEAPON (2) ------- Subdweller Machine Gun Bore Cannon > --- INVENTORY (5) ---- Small Storage Unit Beamcaster Battle Rifle Battle Rifle Datajack Peak State ------------ > --- POWER ------------ Ion Engine > --- PROPULSION ------- Subdweller Monowheel > --- UTILITY ---------- Targeting Computer > --- WEAPON ----------- Subdweller Machine Gun Bore Cannon > --- INVENTORY -------- Small Storage Unit Beamcaster Battle Rifle Battle Rifle Datajack [Rating: 12] Favorites ----------- Power Ion Engine Engine Ion Engine Propulsion Light Treads Treads Light Treads Wheel Subdweller Monowheel Flight Unit Flight Unit Utility Small Storage Unit Device Sensor Array Storage Small Storage Unit Processor Targeting Computer Weapon Light Assault Rifle Ballistic Gun Light Assault Rifle Ballistic Cannon Bore Cannon Build | -11 -10 -10 -10 ------- Run | Yrd Mat Min Sub Slots Evolved . | . . . . Power . | . . . . Propulsion . | . . . . Utility . | . . . . Weapon . | . . . . Parts Attached 14 | 6 3 1 4 Power 1 | 1 . . . Engine 1 | 1 . . . Core . | . . . . Reactor . | . . . . Propulsion 5 | 2 2 . 1 Treads 2 | 2 . . . Leg . | . . . . Wheel 1 | . . . 1 Hover . | . . . . Flight 2 | . 2 . . Utility 3 | 1 1 . 1 Device 1 | . 1 . . Storage 1 | 1 . . . Processor 1 | . . . 1 Hackware . | . . . . Protection . | . . . . Artifact . | . . . . Weapon 5 | 2 . 1 2 Energy Gun . | . . . . Energy Cannon . | . . . . Ballistic Gun 4 | 2 . 1 1 Ballistic Cannon 1 | . . . 1 Launcher . | . . . . Special Weapon . | . . . . Impact Weapon . | . . . . Slashing Weapon . | . . . . Piercing Weapon . | . . . . Special Melee Weapon . | . . . . Unidentified Prototypes . | . . . . Parts Lost 4 | . . . 4 Power . | . . . . Propulsion 2 | . . . 2 Utility . | . . . . Weapon 2 | . . . 2 Highest Loss Streak 4 | . . . 4 To Critical Strikes . | . . . . Average Backups 1 | 1 . 1 3 Power . | . . . . Propulsion . | . . . . Utility . | . . . . Weapon . | . . . 1 Tool/Special . | . . . . Unused Backups 6 | . 1 . 5 Power . | . . . . Propulsion . | . . . . Utility 2 | . 1 . 1 Weapon 3 | . . . 3 Tool/Special 1 | . . . 1 Average Slot Usage (%) 85 | . 95 100 61 Engine 14 | . 14 14 14 Treads 13 | . 19 . . Wheel 2 | . . . 9 Flight 5 | . 5 28 3 Device 9 | . 12 14 . Storage 10 | . 14 14 . Processor 2 | . . . 10 Ballistic Gun 23 | . 28 28 12 Ballistic Cannon 2 | . . . 10 Peak Build Rating 12 | 6 7 7 12 Average Rating 7 | 3 6 7 8 On Entrance 5 | . 6 7 7 Avg Prop Armor Cover (%) 5 | . . . 5 Naked Turns . | . . . . Heaviest Build 18 | 13 14 14 18 Greatest Support 40 | 40 40 8 20 Greatest Overweight (x) 5 | 1 4 1 5 Average Overweight (x) . | . . 1 . Largest Inventory Capacity 8 | 8 8 8 8 Average Capacity 7 | 6 8 8 5 Most Carried 5 | 5 2 2 5 Average Carried 1 | 1 . 1 3 Final Capacity 8 | 8 8 8 5 Final Carried 5 | . 1 1 5 Class Distribution -------------------- 80% | Mutant 19% | Scavenger-Mutant Dominant Class ---------------- Mutant | -10/Materials Mutant | -10/Mines Scavenger-Mutant | -10/Subcaves Resources | -11 -10 -10 -10 ----------- Run | Yrd Mat Min Sub Matter Collected 575 | 208 218 33 116 Remotely . | . . . . Salvage Created 442 | . 311 33 98 Parts 27 | . 19 3 5 Haulers Intercepted . | . . . . Recyclers Shooed . | . . . . Parts Field Recycled . | . . . . Retrieved Matter . | . . . . Parts Self-Destructed . | . . . . Prevented . | . . . . Parts Restored . | . . . . Kills | -11 -10 -10 -10 ------- Run | Yrd Mat Min Sub Combat Hostiles Destroyed 12 | . 7 2 3 Guns 10 | . 7 2 1 Cannons 2 | . . . 2 Classes Destroyed 6 | . 5 . 1 Worker 1 | . 1 . . Recycler 1 | . 1 . . Watcher 2 | . 2 . . Swarmer 7 | . 5 2 . Grunt 2 | . 2 . . Subdweller 3 | . . . 3 Best Kill Streak 4 | . 4 2 2 Combat Bots Only 3 | . 3 2 2 Max Kills in Single Turn 1 | . 1 1 1 Gunslinging . | . . . . Exploded . | . . . . Melee . | . . . . Uniques/NPCs Destroyed . | . . . . Combat | -11 -10 -10 -10 -------- Run | Yrd Mat Min Sub Hostile Shots Fired 88 | . 40 17 31 Missed 25 | . 9 7 9 Hits 63 | . 31 10 22 Projectile 63 | . 31 10 22 Damage Taken 833 | . 278 72 483 Core 260 | . 95 28 137 Absorbed by Shields . | . . . . Core Remaining (%) 100 | 100 . . . Volleys Fired 61 | . 44 5 12 Largest 2 | . 2 2 2 Hottest 78 | . 40 40 78 Shots Fired 118 | . 88 10 20 Gun 106 | . 88 10 8 Cannon 12 | . . . 12 Launcher . | . . . . Special . | . . . . Kinetic 118 | . 88 10 20 Thermal . | . . . . Explosive . | . . . . Electromagnetic . | . . . . Robot Hit Streak 7 | . 5 3 7 Robot Miss Streak 3 | . 3 2 1 Penetration Max . | . . . . Secondary Targets 1 | . . 1 . Max Gunslinging Chain 1 | . . 1 . Shots Hit Robots 60 | . 38 5 17 Core Hits 24 | . 17 3 4 Critical Kills . | . . . . Critical Parts Destroyed 1 | . 1 . . Critical Strikes 6 | . 1 . 5 Destroy 6 | . 1 . 5 Melee Attacks . | . . . . Impact . | . . . . Slashing . | . . . . Piercing . | . . . . Sneak Attacks . | . . . . Combat Hostiles . | . . . . Follow-up Attacks . | . . . . Damage Inflicted 778 | . 403 71 304 Guns 585 | . 397 71 117 Cannons 187 | . . . 187 Explosions . | . . . . Melee . | . . . . Ramming 6 | . 6 . . Kinetic 772 | . 397 71 304 Thermal . | . . . . Explosive . | . . . . Electromagnetic . | . . . . Impact . | . . . . Slashing . | . . . . Piercing . | . . . . Highest Corruption . | . . . . Average Corruption . | . . . . Corruption Purged . | . . . . Corruption Blocked . | . . . . Overload Shots . | . . . . Overflow Damage . | . . . . Projectiles . | . . . . Explosions . | . . . . Melee . | . . . . Knockbacks 3 | . . . 3 Impact . | . . . . Kinetic 3 | . . . 3 Secondary . | . . . . Self-Inflicted Damage . | . . . . Shots . | . . . . Rammed 2 | . 2 . . Targets Rammed 2 | . 2 . . Kicked . | . . . . Crushed . | . . . . Highest Temperature 8 | . 8 4 1 Average Temperature 3 | . 3 3 1 Received Heat Transfer 192 | . 72 . 120 Siege Activations . | . . . . Martial Activations . | . . . . Shielding Activations . | . . . . Robots Disrupted . | . . . . Combat Hostiles . | . . . . Robots Corrupted . | . . . . Combat Hostiles . | . . . . Parts Fried . | . . . . Impact Corruptions . | . . . . Robots Melted . | . . . . Combat Hostiles . | . . . . Parts Melted . | . . . . Heat Transferred . | . . . . Parts Sabotaged . | . . . . Parts Stolen . | . . . . Parts Stripped . | . . . . Power Chain Reactions . | . . . . Alert | -11 -10 -10 -10 ------- Run | Yrd Mat Min Sub Maximum Alert Level . | . . . . Low Security (%) 100 | 100 100 100 . Level 1 . | . . . . Level 2 . | . . . . Level 3 . | . . . . Level 4 . | . . . . Level 5 . | . . . . High Security . | . . . . Max Security . | . . . . Peak Influence 104 | . 104 81 . Initial 31 | . . 31 . Average 17 | . 17 62 . Influence Increases 281 | . 231 50 . Destroy 0b10 Robot/C 180 | . 140 40 . Destroy 0b10 Robot/NC 20 | . 20 . . Destroy Leader 34 | . 24 10 . Successful Hack 2 | . 2 . . Lose Combat Pursuer 45 | . 45 . . Influence Decreases 281 | . 151 69 61 Entered New Map 82 | . . 49 33 Time Decay 199 | . 151 20 28 Squads Dispatched 1 | . 1 . . Investigation . | . . . . Extermination . | . . . . Reinforcement 1 | . 1 . . Assault . | . . . . Garrison . | . . . . Intercept . | . . . . Searches Triggered . | . . . . Construction Impeded . | . . . . Haulers Reinforced . | . . . . Active Scanning Responses . | . . . . Cargo Convoy Interrupts . | . . . . Stealth | -11 -10 -10 -10 --------- Run | Yrd Mat Min Sub Distress Signals . | . . . . Communications Jammed . | . . . . Distress Signals . | . . . . Times Spotted 29 | . 16 3 10 Peak Tracking Total 6 | . 4 3 6 Tactical Retreats 2 | . 2 . . Traps | -11 -10 -10 -10 ------- Run | Yrd Mat Min Sub Traps Triggered 2 | . 2 . . Indirectly . | . . . . Trap Hack Attempts . | . . . . Triggered . | . . . . Disarmed . | . . . . Reprogrammed . | . . . . Reused . | . . . . Traps Extracted . | . . . . Installed . | . . . . Triggered . | . . . . Machines | -11 -10 -10 -10 ---------- Run | Yrd Mat Min Sub Machines Disabled . | . . . . Max in Single Turn . | . . . . Machines Repaired . | . . . . Machines Dismantled . | . . . . Machines Sabotaged . | . . . . Overloaded Fab Kills . | . . . . Hacking | -11 -10 -10 -10 --------- Run | Yrd Mat Min Sub Machines Accessed 2 | . 2 . . Terminals 2 | . 2 . . Fabricators . | . . . . Repair Stations . | . . . . Recycling Units . | . . . . Scanalyzers . | . . . . Garrison Access . | . . . . Total Hacks 5 | . 5 . . Successful 3 | . 3 . . Failed 2 | . 2 . . Catastrophic 1 | . 1 . . Database Lockouts . | . . . . Manual . | . . . . Terminals 5 | . 5 . . Fabricators . | . . . . Repair Stations . | . . . . Recycling Units . | . . . . Scanalyzers . | . . . . Garrison Access . | . . . . Terminal Hacks 3 | . 3 . . Record 1 | . 1 . . Alert Level 1 | . 1 . . Dispatch Records 1 | . 1 . . Fabricator Hacks . | . . . . Repair Station Hacks . | . . . . Recycling Unit Hacks . | . . . . Scanalyzer . | . . . . Garrison Access Hacks . | . . . . Unauthorized Hacks . | . . . . Terminals . | . . . . Fabricators . | . . . . Repair Stations . | . . . . Recycling Units . | . . . . Scanalyzers . | . . . . Garrison Access . | . . . . Data Cores Recovered . | . . . . Used . | . . . . Hacking Detections 2 | . 2 . . Full Trace Events 1 | . 1 . . Feedback Events . | . . . . Feedback Blocked . | . . . . Robot Schematics Acquired . | . . . . Robots Built . | . . . . Authchips . | . . . . Time . | . . . . Total Robot Build Rating . | . . . . Part Schematics Acquired . | . . . . Parts Built . | . . . . Authchips . | . . . . Time . | . . . . Total Part Build Rating . | . . . . Part Studies Acquired . | . . . . Parts Repaired . | . . . . Time . | . . . . Parts Recycled . | . . . . Recycled Matter . | . . . . Retrieved Matter . | . . . . Retrieved Components . | . . . . Parts Scanalyzed . | . . . . Part Schematics Acquired . | . . . . Parts Damaged . | . . . . Bothacking | -11 -10 -10 -10 ------------ Run | Yrd Mat Min Sub Used RIF Installer . | . . . . Robots Hacked . | . . . . Non-combat . | . . . . Combat . | . . . . Robot Hacks Applied . | . . . . Relay Couplers Released . | . . . . Fabnet Peak Effective % . | . . . . Robots Rewired . | . . . . Allies Hacked . | . . . . Hacks Repelled . | . . . . Allies | -11 -10 -10 -10 -------- Run | Yrd Mat Min Sub Total Allies . | . . . . Largest Group . | . . . . Highest-Rated Group . | . . . . Highest-Rated Ally . | . . . . Total Orders . | . . . . Ally Attacks . | . . . . Total Damage . | . . . . Kills . | . . . . Allies Corrupted . | . . . . Allies Melted . | . . . . Intel | -11 -10 -10 -10 ------- Run | Yrd Mat Min Sub Active Infowar (turns) 1792 | . 1732 47 13 Sensors 1792 | . 1732 47 13 Robot Analysis Total . | . . . . Derelict Logs Recovered 2 | . . . 2 Drone Launches . | . . . . Drone Recoveries . | . . . . Exploration | -11 -10 -10 -10 ------------- Run | Yrd Mat Min Sub Turns Passed 2801 | 86 1905 47 763 Spaces Moved 1276 | 88 570 26 592 Core 188 | 62 15 . 111 Treads 344 | 26 318 . . Legs . | . . . . Wheels 313 | . . . 313 Hover . | . . . . Flight 431 | . 237 26 168 Fastest Speed 37 | 50 117 117 37 Average Speed 132 | 84 167 117 106 Slowest Speed 300 | 160 280 117 300 Overloaded Moves . | . . . . Propulsion Burnouts . | . . . . Robots Hopped . | . . . . Potential Cave-ins . | . . . . Cave-ins Triggered . | . . . . Exploration Rate (%) 29 | 4 73 6 35 Regions Visited 3 Branch Regions 2 Pre-discovered Areas 2 | . . . 2 Known Exits Taken . | . . . . Unknown Exits Taken 3 | 1 1 1 . Scrap Searched . | . . . . Spaces Dug . | . . . . Terrain Destroyed 3 | . . . 3 Melee . | . . . . Projectile 3 | . . . 3 AOE . | . . . . Terrain Rammed . | . . . . Walls Destroyed . | . . . . Machines Disabled . | . . . . Actions | -11 -10 -10 -10 --------- Run | Yrd Mat Min Sub Total 2271 | 100 1436 33 702 Wait 897 | . 813 . 84 Move 1273 | 87 569 25 592 Hop . | . . . . Pick Up 13 | 5 3 1 4 Fast Attach 9 | 2 3 . 4 Attach 7 | 5 1 . 1 Detach 3 | . . . 3 Swap 1 | . . 1 . Drop 5 | 1 1 1 2 Fire 61 | . 44 5 12 Melee . | . . . . Ram . | . . . . Kick . | . . . . Crush 2 | . 2 . . Escape Stasis . | . . . . Rewire . | . . . . Trap . | . . . . Miscellaneous . | . . . . Route ------- -11/Scrapyard -10/Materials (discovered 2 exits: [*Mat] / [*Min]) -10/Mines -10/Subcaves (discovered 1 exit: [*Mat]) History --------- Turn | Location | Event 11 | -11/Scrapyard | Discovered new exit (range 15) 87 | -11/Scrapyard | Entered Materials 300 | -10/Materials | Build established: Mutant 1230 | -10/Materials | Discovered new exit (range 8) 1944 | -10/Materials | Discovered new exit (range 14) 1992 | -10/Materials | Entered Mines 2022 | -10/Mines | Discovered new exit (range 10) 2039 | -10/Mines | Entered Subcaves 2070 | -10/Subcaves | Discovered new exit (range 16) 2120 | -10/Subcaves | Ambushed by swarm of Subdwellers 2125 | -10/Subcaves | Core integrity fell below 50% 2133 | -10/Subcaves | Shifting Twisted Machinery released Battle Rifle 2158 | -10/Subcaves | Lost 4 parts (2n2w) 2323 | -10/Subcaves | Shifting Twisted Machinery released Battle Rifle 2400 | -10/Subcaves | Learned location of Storage (-7) 2407 | -10/Subcaves | Learned location of Zion (-7) 2539 | -10/Subcaves | Build established: Scavenger-Mutant 2547 | -10/Subcaves | Lost 3 allies 2791 | -10/Subcaves | Core integrity fell below 20% 2802 | -10/Subcaves | Destroyed by FP-CM4(R) with Subdweller Beam Cannon Last Messages --------------- 02782_ HV Slug penetrates CX-NVV(R). 02782_ CX-NVV(R) suffers critical hit (Destroy). 02785_ HV Slug penetrates CX-NVV(R). 02785_ CX-NVV(R) suffers critical hit (Destroy). 02785_ CX-NVV(R) knocked back. 02785_ HV Slug penetrates CX-NVV(R). 02788_ CX-NVV(R) knocked back. 02788_ HV Slug penetrates CX-NVV(R). 02788_ HV Slug penetrates Wall. 02791_ HV Slug penetrates CX-NVV(R). 02791_ CX-NVV(R) knocked back. 02794_ Sub. Machine Gun shoots sparks and powers down. 02794_ CX-NVV(R) destroyed. 02797_ HV Slug penetrates FP-CM4(R). 02797_ FP-CM4(R) suffers critical hit (Destroy). 02801_ FP-CM4(R) affixes Scrap Shield Fragment to Scrap Shield. 02801_ FP-CM4(R) suffers critical hit (Destroy). Map ----- +----------------------------------------------------+ | ?????????????????????????????????????????????????? | | ?????????????????????????????????????????????????? | | ?????????????????????????????????????????????????? | | ?????????????????????????????????????????????????? | | ?????????????????????????????????????????????????? | | ?????????????????????????????????????????????????? | | ?????????????????????????????????????????????????? | | ?????????????????????????????????????????????????? | | ?????????????????????????????????????????????????? | | ??####???????????????????????????????????????????? | | ??# ???????????????????????????????????????????? | | ??# ???????????????????????????????????????????? | | ??# ##??######?????????????????????????????????? | | ???# #### ##??????????????? ???????????????? | | ???# #?????????????? ????????????????? | | ????# * #???????###??? ?????????????????? | | ?????# ###?????# #??? #????????? ???????? | | #????# ###???# #?? #???????? ???????? | | ##?### ##### ### ###???? ???????? | | ### ] ## # #??? #???????? | | ?? ##??????? | | #?????? | | [ ## ###??? #??????? | | ## ; ### %= #???????? | | ### ###### ;; %R% #????????????? | | ##?#####????## @ %&%!#?????????????? | | ##????????????##### ### #####?????????????? | | ##?????????????????####?#######?????????????????? | | #???????????????????????????????????????????????? | | #???????????????????????????????????????????????? | | ##???????????????????????????????????????????????? | | ?????????????????????????????????????????????????? | | ?????????????????????????????????????????????????? | | ?????????????????????????????????????????????????? | | ?????????????????????????????????????????????????? | | ?????????????????????????????????????????????????? | | ?????????????????????????????????????????????????? | | ?????????????????????????????????????????????????? | | ?????????????????????????????????????????????????? | | ?????????????????????????????????????????????????? | | ?????????????????????????????????????????????????? | | ??? ?????????????????????????????????????????????? | | ? ##??????????????????????????????????????????? | | #??????????????????????????????????????????? | | #??????????????????????????????????????????? | | #??????????????????????????????????????????? | | #??????????????????????????????????????????? | | ##??????????????????????????????????????????? | | ####???????????????????????????????????????????? | | #####????????????????????????????????????????????? | +----------------------------------------------------+ Best States ------------- Heat Dissipation 25 Energy Generation 10 Energy Capacity 250 Matter Stores 300 Matter Capacity 300 Sight Range 16 Robot Scan Range 14 Terrain Scan Density 10 Evasion (%) 62 Targeting Accuracy 5 Recoil Reduction 2 Item Schematics ----------------- None Robot Schematics ------------------ None Fabricated ------------ Nothing Repaired ---------- Nothing Studied --------- None Alien Tech Used ----------------- None Achievements -------------- None Challenges ------------ None Game ------ Seed ProjectileIonicActivator Manual? 0 Play Time 00:25:39 Cumulative 4.7 hours Start 2026.07.02 @ 00:21:38 End 2026.07.02 @ 00:48:48 Sessions 1 Manual Loads 0 Difficulty Rogue Special Mode None Game No. 14 Rogue 14 Adventurer 0 Explorer 0 Win Type - Total 0 Types 0/0/0/0/0/0/0/0/0/0 Lore% 3 Gallery% 7 Achievement% 8 Wizard Run 0 Options --------- Layout 1 ASCII 0 Keyboard 1 Movement Arrows Keybinds 0 Fullscreen 1 Font 24/Crisp Map View 50x35 Zoom Use 0% Tactical HUD 1 Map Filters NONE Filters NONE Steam 1 RUN: dd5b50d2-548f-4e5b-9795-3fb04b4a1258